[Event "93rd German Championship 2022"]
[Site "Magdeburg"]
[Date "2022.08.15"]
[Round "2.19"]
[White "Yi, Danny"]
[Black "Tschernatsch, Johannes"]
[Result "1-0"]
[ECO "B93"]
[WhiteElo "2273"]
[BlackElo "2296"]
[Annotator "TA"]
[PlyCount "71"]
[EventDate "2022.08.14"]
[EventType "swiss"]
[EventCountry "GER"]
[SourceTitle "playchess.com"]
[Source "ChessBase"]
[SourceQuality "1"]
[TimeControl "40/5400+30:1800+30"]

{[%evp 20,71,0,0,0,0,-14,-16,-25,-4,-29,-31,-18,-45,-42,-35,-8,-15,0,0,-37,-64,-18,-9,-9,-20,-16,-14,0,-38,-33,-25,-41,-73,40,27,49,4,145,132,222,233,472,466,450,452,872,832,814,789,29986,5783,4898,1655]} 1. e4 {[%emt 0:00:02]} c5 {[%emt 0:00:07]} 2. Nf3 {[%emt 0:00:13]} d6 {[%emt 0:00:06]} 3. d4 {[%emt 0:00:07]} cxd4 {[%emt 0:00:08]} 4. Nxd4 {[%emt 0:00:11]} Nf6 {[%emt 0:00:06]} 5. Nc3 {[%emt 0:00:06]} a6 {[%emt 0:00:05]} 6. f4 {[%emt 0:00:16]} e5 {[%emt 0:00:07]} 7. Nf3 {[%emt 0:00:16]} Nbd7 {[%emt 0:00:09]} 8. a4 {[%emt 0:01:39]} Qc7 {[%emt 0:00:09]} 9. Bd3 {[%emt 0:00:57]} Be7 {[%emt 0:00:13]} 10. O-O {[%emt 0:01:21]} O-O {[%emt 0:00:36]} 11. Qe1 {[%emt 0:05:38]} Re8 {[%emt 0:00:09] B93: Sicilian Najdorf: 6 f4.} 12. Kh1 {[%emt 0:02:59]} Nc5 {[%emt 0:00:20]} 13. fxe5 {[%emt 0:11:29]} dxe5 {[%emt 0:00:14] The position is equal.} 14. Qg3 {[%emt 0:01:53]} Be6 {[%emt 0:00:49]} 15. Be3 {[%emt 0:18:39] [#]} (15. Nxe5 $2 Nh5 16. Qf3 Qxe5 $19) 15... Rad8 $146 {[%emt 0:26:06]} (15... Nxd3 16. cxd3 Ng4 17. Bg1 $11) ({Predecessor:} 15... h6 16. Qxe5 Bd6 17. Qd4 Rad8 18. e5 Be7 19. Qb4 Nxd3 20. Qb6 Qxb6 21. Bxb6 Ng4 22. Bxd8 {0-1 (57) Rebord,M (2507)-Saglione,E (2507) ICCF email 2009}) 16. Rad1 {[%emt 0:10:05]} (16. Nxe5 $2 Nh5 17. Qf3 Qxe5 $19) 16... Nxd3 {[%emt 0:04:33]} (16... h6 {is interesting.} 17. Nh4 Nh5 18. Qf3 Bxh4 19. Qxh5 Nxd3 20. cxd3 Be7) 17. cxd3 {[%emt 0:01:06]} Ng4 {[%emt 0:09:11]} (17... Bb3 $5 {[%cal Rb3d1]} 18. Rc1 Rxd3 $15) 18. Bg1 {[%emt 0:05:14][%cal Be3g1,Bg1h2,Bh2g3][%mdl 32]} Rd7 {[%emt 0:18:07]} 19. h3 {[%emt 0:14:03]} Nf6 {[%emt 0:00:20]} 20. Bh2 {[%emt 0:01:00]} (20. Nxe5 Nh5 21. Qh2 f6 $1 22. Nxd7 Ng3+ 23. Qxg3 Qxg3 $17) 20... Bd6 {[%emt 0:10:11]} (20... Bb3 $1 $15 {might be stronger.} 21. Rd2 (21. Qxe5 $2 Bd6 $17) 21... Bd6) 21. Ng5 $11 {[%emt 0:03:31][%cal Of1f6] Hoping for Rxf6!} ({Avoid the trap} 21. Nxe5 $2 Bb3 22. d4 (22. Rxf6 $2 Bxe5 23. Qg4 Bxd1 $19) 22... Bxd1 23. Rxf6 Bxe5 24. dxe5 Bxa4 $1 $19 {[%mdl 512]}) 21... Qd8 {[%emt 0:02:06] next ...Bb3 is good for Black.} ({Much less strong is} 21... Bb3 {[#]} 22. Rxf6 $1 Bxd1 23. Nxd1 $1 $16) 22. Nxe6 {[%emt 0:03:15]} Rxe6 {[%emt 0:00:54]} 23. Qf2 {[%emt 0:04:14] Prevents Bc5.} Bc7 {[%emt 0:03:26]} 24. Qf3 {[%emt 0:03:05]} h6 {[%emt 0:05:18]} 25. Bg3 {[%emt 0:00:39]} Ba5 {[%emt 0:02:49]} 26. Ne2 {[%emt 0:06:13]} Qb6 {[%emt 0:07:20]} (26... Ne8 $17 {...Rf6 is the strong threat.} 27. Nc3 Nc7) 27. d4 $14 {[%emt 0:01:38]} exd4 {[%emt 0:00:44]} 28. e5 {[%emt 0:00:07]} Nh7 {[%emt 0:06:14]} (28... Qxb2 $2 29. Nf4 Rxe5 30. Nd3 $18) (28... Qc6 $11 {keeps the balance.}) 29. Nxd4 $1 $16 {[%emt 0:00:12]} Ng5 {[%emt 0:01:02]} (29... Rg6 $16) 30. Qg4 $18 {[%emt 0:00:41] Black must now prevent h4.} h5 $2 {[%emt 0:01:16]} (30... Qd8 31. Nxe6 Nxe6) 31. Qxg5 {[%emt 0:01:54]} Rxd4 {[%emt 0:00:10]} 32. Qxh5 {[%emt 0:00:19]} (32. Rxd4 Qxd4 33. Qxh5 Qd7 $14) 32... Rg6 {[%emt 0:02:03]} (32... Rxd1 $142 33. Qxf7+ (33. Rxd1 Qc6 $14) 33... Kh7) 33. Rxd4 {[%emt 0:00:22]} Qxd4 {[%emt 0:00:41] [#]} 34. e6 $1 {[%emt 0:00:05]} Rh6 {[%emt 0:01:10]} (34... Rf6 35. exf7+) 35. exf7+ {[%emt 0:00:22]} (35. Qxf7+ $142 Kh7 36. e7 Qe4 37. e8=Q Qxe8 38. Qxe8 Bb4 39. Qe4+ Kh8 40. Qxb4) 35... Kf8 {[%emt 0:00:13]} 36. Qxa5 {[%emt 0:00:28] Weighted Error Value: White=0.07 (flawless) /Black=0.64} 1-0

[Event "93rd German Championship 2022"]
[Site "Magdeburg"]
[Date "2022.08.15"]
[Round "2.20"]
[White "Burian, Simon"]
[Black "Hourigan, Gerrit"]
[Result "0-1"]
[ECO "B90"]
[WhiteElo "2189"]
[BlackElo "2306"]
[Annotator "TA"]
[PlyCount "106"]
[EventDate "2022.08.14"]
[EventType "swiss"]
[EventCountry "GER"]
[SourceTitle "playchess.com"]
[Source "ChessBase"]
[SourceQuality "1"]
[TimeControl "40/5400+30:1800+30"]

{[%evp 9,106,25,29,4,7,5,6,7,0,0,0,0,0,0,0,0,12,0,0,-141,-129,-212,-49,-36,-32,-36,-33,-70,-75,-91,-102,-97,-106,-111,-109,-106,0,-7,0,0,0,0,0,0,0,-56,-58,-60,-35,-108,-70,-64,-52,-52,-52,-52,-69,-64,-52,-52,-53,-60,-7,-5,0,0,0,0,0,0,0,0,0,0,0,0,0,0,0,0,0,-12400,-11136,-29974,-29973,-29977,-29976,-29980,-29981,-29982,-29983,-29983,-29984,-29984,-29985,-29985,-29986,-29986,-29987]} 1. e4 {[%emt 0:00:04]} c5 {[%emt 0:00:07]} 2. Nf3 {[%emt 0:00:07]} d6 {[%emt 0:00:07]} 3. d4 {[%emt 0:00:06]} cxd4 {[%emt 0:00:05]} 4. Nxd4 {[%emt 0:00:05]} Nf6 {[%emt 0:00:07]} 5. Nc3 {[%emt 0:00:18]} a6 {[%emt 0:00:08]} 6. h4 {[%emt 0:00:19] B90: Sicilian Najdorf: Unusual White 6th moves, 6 Be3 Ng4 and 6 Be3 e5.} e5 {[%emt 0:02:22]} 7. Nb3 {[%emt 0:00:05]} Be7 {[%emt 0:01:19]} 8. Bg5 {[%emt 0:00:08] The position is equal.} Be6 {[%emt 0:01:21]} 9. Bxf6 {[%emt 0:00:09]} Bxf6 {[%emt 0:00:21]} 10. g3 {[%emt 0:00:10]} O-O {[%emt 0:04:08]} 11. Qd2 {[%emt 0:00:08]} a5 {[%emt 0:01:26]} 12. a4 {[%emt 0:04:26]} Na6 {[%emt 0:02:04] [#]} 13. Nd5 $146 {[%emt 0:08:59]} ({Predecessor:} 13. Bh3 Bxh3 14. Rxh3 Nb4 15. O-O-O b5 16. Nxb5 Qd7 17. Rdh1 Rac8 18. c3 Qg4 19. Na1 Qxe4 {0-1 (28) Mazur,S (2472)-Martinovic,S (2565) Slovakia 2018}) 13... Nb4 {[%emt 0:27:13]} 14. Nxf6+ {[%emt 0:16:21]} (14. Nxb4 $11 {keeps the balance.} axb4 15. Qxb4) 14... Qxf6 $17 {[%emt 0:00:46]} 15. Nxa5 {[%emt 0:01:32]} Nxc2+ $2 {[%emt 0:11:09]} (15... Qf3 $19 16. Qxb4 Qxh1) 16. Qxc2 $15 {[%emt 0:00:17] And now Nc4 would win.} Rxa5 {[%emt 0:05:20]} 17. Be2 {[%emt 0:03:52] Against Qf3} Rc5 {[%emt 0:02:52]} 18. Qd2 {[%emt 0:01:14]} Rfc8 {[%emt 0:08:01][%cal Bf8c8,Bc8c2,Bc2b2,Bb2b6,Bb6c6,Bc6c5][%mdl 32]} 19. Bd1 {[%emt 0:09:28]} Qg6 {[%emt 0:07:00]} 20. Qe3 {[%emt 0:05:46]} Rc4 $1 {[%emt 0:04:13]} 21. Bf3 {[%emt 0:00:19]} Rb4 $1 {[%emt 0:05:36]} 22. O-O {[%emt 0:03:54]} Rxb2 {[%emt 0:05:31] Black is more active.} (22... Rb3 $17 23. Qe2 Bc4) 23. Rab1 {[%emt 0:06:48]} Rcc2 {[%emt 0:02:52][%cal Oc2f2]} 24. Rxb2 {[%emt 0:00:50]} Rxb2 {[%emt 0:00:01]} 25. Qa3 {[%emt 0:00:38][%csl LRb2,LRd6]} Rb6 {[%emt 0:00:47]} 26. a5 {[%emt 0:03:11]} Rc6 {[%emt 0:00:49]} 27. Qb4 {[%emt 0:00:19]} (27. Rb1 $11 Bc8 28. Rb6 Rxb6 29. axb6) 27... Bc8 {[%emt 0:00:34]} 28. Bd1 {[%emt 0:04:30]} Qf6 {[%emt 0:03:05]} 29. Ba4 {[%emt 0:00:45]} (29. Kg2 $15) 29... Rc5 {[%emt 0:00:33] aiming for ...Bh3.} (29... Bh3 {looks sharper.} 30. Qa3 Rc5 31. Rb1 Rxa5 32. Rxb7 g6) 30. Kg2 {[%emt 0:01:58] Inhibits Bh3+.} Qd8 {[%emt 0:00:54]} 31. Rd1 $1 {[%emt 0:00:43] Qxc5 is the strong threat.} Qc7 {[%emt 0:00:51]} ({Much less strong is} 31... Rxa5 32. Rxd6 Qf8 33. Bb3 $16) 32. Qb6 {[%emt 0:00:29]} Qxb6 {[%emt 0:01:10]} 33. axb6 {[%emt 0:00:05][%mdl 4096] Endgame KRB-KRB} Kf8 $1 {[%emt 0:00:15]} 34. Rxd6 {[%emt 0:00:57]} Ke7 $1 {[%emt 0:00:14] Inhibits Rd8.} 35. Rd3 {[%emt 0:02:08]} Rc4 {[%emt 0:01:15]} ({Black should play} 35... Be6 $15) 36. Bb3 $11 {[%emt 0:00:28]} Rc6 {[%emt 0:00:21]} 37. Bd5 {[%emt 0:00:17]} Rxb6 {[%emt 0:00:25]} 38. Rc3 $1 {[%emt 0:00:06]} Bd7 {[%emt 0:02:54]} 39. Rc7 {[%emt 0:00:08] Against Bc6} Kd6 {[%emt 0:00:33]} 40. Rxb7 {[%emt 0:00:07]} Rxb7 {[%emt 0:00:42]} 41. Bxb7 {[%emt 0:30:09]} Bc6 {[%emt 0:01:42]} 42. Bxc6 {[%emt 0:00:00]} Kxc6 {[%emt 0:00:01] KP-KP} 43. Kf3 {[%emt 0:00:00]} Kc5 {[%emt 0:03:12] Hoping for ...Kd4.} 44. Ke3 {[%emt 0:00:00]} h5 {[%emt 0:02:25]} 45. f3 $2 {[%emt 0:00:00][%mdl 8192] [#]} (45. Kd3 $11) 45... Kc4 $1 $19 {[%emt 0:00:39]} 46. g4 {[%emt 0:00:00]} hxg4 {[%emt 0:04:27] Black mates.} 47. fxg4 {[%emt 0:00:00] K3P-K3P} Kc3 {[%emt 0:04:05]} 48. h5 {[%emt 0:00:00]} f6 {[%emt 0:00:18]} 49. Kf3 {[%emt 0:00:00]} Kd3 {[%emt 0:00:47]} 50. g5 {[%emt 0:00:00]} fxg5 {[%emt 0:00:07]} 51. Kg4 {[%emt 0:00:00]} Kxe4 {[%emt 0:00:36]} 52. Kxg5 {[%emt 0:00:00] [#]} Kf3 $1 {[%emt 0:00:41]} 53. Kg6 {[%emt 0:00:00]} Kg4 {[%emt 0:00:37] Weighted Error Value: White=0.42/Black=0.11 (very precise)} 0-1

[Event "93rd German Championship 2022"]
[Site "Magdeburg"]
[Date "2022.08.15"]
[Round "2.21"]
[White "Stricker, Florian"]
[Black "Cofmann, Veaceslav"]
[Result "0-1"]
[ECO "B01"]
[WhiteElo "2182"]
[BlackElo "2301"]
[Annotator "TA"]
[PlyCount "91"]
[EventDate "2022.08.14"]
[EventType "swiss"]
[EventCountry "GER"]
[SourceTitle "playchess.com"]
[Source "ChessBase"]
[SourceQuality "1"]
[TimeControl "40/5400+30:1800+30"]

{[%evp 9,91,-58,-14,-18,0,0,0,0,5,-2,0,-16,-16,-45,-27,-89,-37,-49,-38,-141,-142,-149,-145,-141,-130,-138,-110,-114,-123,-133,-136,-150,-139,-241,-248,-225,-215,-222,-234,-309,-209,-221,-187,-222,-247,-250,-251,-249,-208,-193,-181,-172,-174,-393,-378,-365,-356,-301,-275,-705,-698,-1283,-1273,-2385,-729,-659,-723,-1585,-275,-680,-674,-659,-650,-611,-624,-704,-685,-789,-789,-757,-767,-746,-237,-195]} 1. e4 {[%emt 0:00:03]} d5 {[%emt 0:00:10]} 2. Nc3 {[%emt 0:00:12]} d4 {[%emt 0:00:38]} 3. Nce2 {[%emt 0:00:16]} c5 {[%emt 0:00:59]} 4. Nf3 {[%emt 0:03:08]} Nc6 {[%emt 0:00:09]} 5. Ng3 {[%emt 0:00:27]} g6 {[%emt 0:01:58]} 6. Bb5 {[%emt 0:03:43] A00: Irregular Openings.} Bd7 {[%emt 0:00:21]} 7. Bxc6 {[%emt 0:02:25]} Bxc6 {[%emt 0:00:08] [#]} 8. Ne5 $146 {[%emt 0:01:04] The position is equal.} ({Predecessor:} 8. d3 Bg7 9. Bf4 f6 10. O-O e5 11. Bd2 Ne7 12. Ne1 g5 13. Qh5+ Kf8 14. Qe2 {½-½ (38) Savio,A (2052)-Tomazini,A (2314) Wolfsberg 2014}) 8... Qc7 {[%emt 0:01:39]} 9. Nxc6 {[%emt 0:02:05]} (9. f4 {is more complex.} h5 10. d3 e6 11. O-O) 9... Qxc6 {[%emt 0:00:07]} 10. O-O {[%emt 0:00:56]} h5 {[%emt 0:04:15]} 11. h4 {[%emt 0:36:28]} e6 {[%emt 0:05:40]} 12. Re1 {[%emt 0:07:42]} (12. d3 $11 {keeps the balance.}) 12... e5 {[%emt 0:03:21]} (12... Be7 $17) 13. d3 $15 {[%emt 0:02:10]} Be7 {[%emt 0:01:04]} 14. f4 {[%emt 0:05:39] White is now going downhill.} (14. Bg5 $15) 14... Bxh4 $17 {[%emt 0:01:42]} 15. Qf3 {[%emt 0:00:29]} Nf6 {[%emt 0:00:34][%cal Bg8f6,Bf6g4,Bg4e5][%mdl 32]} 16. Rf1 {[%emt 0:01:24]} Ng4 {[%emt 0:00:59]} 17. fxe5 {[%emt 0:07:27]} Qe6 {[%emt 0:02:09]} 18. Ne2 {[%emt 0:06:54]} Nxe5 {[%emt 0:00:41]} (18... Qxe5 $2 19. Qxf7+ Kd8 20. Bf4 $18) 19. Qf4 {[%emt 0:00:54]} Be7 {[%emt 0:01:09] Black is much more active.} 20. b4 {[%emt 0:00:57]} b6 {[%emt 0:05:46]} 21. Qf2 {[%emt 0:07:37]} (21. bxc5 $17 bxc5 22. Qg3) 21... Ng4 $19 {[%emt 0:06:45]} 22. Qf3 {[%emt 0:00:12]} O-O {[%emt 0:00:46]} 23. Nf4 {[%emt 0:02:05]} Qe5 {[%emt 0:01:55]} 24. Qh3 {[%emt 0:01:06]} Bd6 {[%emt 0:02:08]} 25. bxc5 {[%emt 0:01:05]} bxc5 {[%emt 0:02:58]} 26. Rb1 {[%emt 0:01:58]} Rab8 {[%emt 0:01:03]} 27. Rb3 {[%emt 0:01:05]} c4 {[%emt 0:00:42]} 28. dxc4 {[%emt 0:01:34]} Rxb3 {[%emt 0:01:13]} (28... Qxe4 29. Qd3 Qe5 30. g3 $17) 29. axb3 {[%emt 0:00:52]} Qxe4 {[%emt 0:00:11]} 30. Qd3 {[%emt 0:01:23]} Qe5 {[%emt 0:01:13] Strongly threatening ...g5.} 31. Qe2 $2 {[%emt 0:00:30] [#]} (31. g3 {is a better defense.}) 31... Ne3 {[%emt 0:01:32]} 32. Bxe3 {[%emt 0:01:36]} dxe3 {[%emt 0:00:08]} 33. g3 {[%emt 0:00:24]} Re8 {[%emt 0:00:45]} 34. Rf3 $2 {[%emt 0:00:20]} (34. Qf3) 34... Qg5 {[%emt 0:01:12] [#] aiming for ...Bxf4.} 35. Nd5 {[%emt 0:00:53] Hoping for Nf6+.} Bxg3 {[%emt 0:00:22] ( -> ...Bf2+)} 36. Kf1 {[%emt 0:00:12]} Bh2 {[%emt 0:02:40]} 37. Ke1 {[%emt 0:01:05]} Qh4+ {[%emt 0:06:29]} 38. Kf1 {[%emt 0:00:21]} Be5 $2 {[%emt 0:01:13]} (38... Bg3 {[%cal Rh4h1]} 39. Nf6+ Kf8 40. Rxg3 Qxg3 41. Nxe8 Kxe8) 39. Qxe3 $2 {[%emt 0:00:36]} (39. Rxe3 Qh1+ 40. Kf2) 39... Qh1+ {[%emt 0:00:14]} 40. Ke2 {[%emt 0:00:11]} Re6 {[%emt 0:01:08] Inhibits Nf6+.} ({Weaker is} 40... f5 41. Nf6+ Bxf6 42. Qxe8+ Kh7 43. Qf7+ (43. Rg3 Qh2+ 44. Kf3 Qh1+ 45. Ke2 Qh2+ 46. Kf3 Qh1+ 47. Ke2 $11) 43... Bg7 44. Qd5 $14 (44. Qxa7 Qc1 $11) (44. Rg3 Qe4+ 45. Kd1 Qd4+ 46. Ke1 Qe5+ 47. Kf2 Qf4+ 48. Kg2 Qe4+ 49. Kh2 Qh4+ 50. Kg2 Qe4+ 51. Kg1 Qd4+ 52. Kh2 Qh4+ 53. Kg2 Qe4+ $11)) 41. Rf1 {[%emt 0:14:41]} Qg2+ {[%emt 0:00:27]} 42. Rf2 {[%emt 0:00:04]} Qg4+ {[%emt 0:00:12]} 43. Kd3 {[%emt 0:00:05]} Bg7 {[%emt 0:01:14]} 44. Qf4 {[%emt 0:00:54]} Qd1+ {[%emt 0:00:44]} 45. Qd2 {[%emt 0:00:36]} Qh1 $2 {[%emt 0:06:16]} (45... Qa1 {[%csl Gg7][%cal Ra1d4]} 46. Qf4 f5) 46. Qf4 {[%emt 0:00:55] Weighted Error Value: White=0.81/Black=0.41} 0-1

[Event "93rd German Championship 2022"]
[Site "Magdeburg"]
[Date "2022.08.15"]
[Round "2.22"]
[White "Kunin, Vitaly"]
[Black "Eichstaedt, Mirko"]
[Result "1-0"]
[ECO "D02"]
[WhiteElo "2528"]
[BlackElo "2223"]
[Annotator "TA"]
[PlyCount "71"]
[EventDate "2022.08.14"]
[EventType "swiss"]
[EventCountry "GER"]
[SourceTitle "playchess.com"]
[Source "ChessBase"]
[SourceQuality "1"]
[TimeControl "40/5400+30:1800+30"]

{[%evp 10,70,8,0,8,10,16,0,8,0,18,0,15,1,21,-12,-21,-10,0,0,5,9,40,22,85,76,76,90,120,127,165,169,300,298,298,298,286,288,362,338,423,402,533,537,564,548,670,658,622,623,729,722,702,689,1153,1110,29996,29997,29997,29998,29998,29999,29999]} 1. d4 d5 2. Nf3 Nf6 3. c4 c6 4. Qb3 dxc4 5. Qxc4 Bg4 6. Nbd2 e6 {D23: Queen's Gambit Accepted: 3 Nf3 Nf6 sidelines.} 7. g3 Be7 8. Bg2 O-O {The position is equal.} 9. O-O Nbd7 10. Rd1 Nb6 11. Qb3 a5 12. Nc4 Nxc4 13. Qxc4 {[#]} a4 $146 ({Predecessor:} 13... Qd5 14. Qc3 Bb4 15. Qe3 Qb5 16. a3 Be7 17. h3 Bf5 18. Ne5 Bc2 19. Re1 c5 {½-½ (71) Kunin,V (2550)-Gadimbayli,A (2460) Moscow 2020}) 14. Ne5 Bh5 15. Bg5 Nd7 16. Bxc6 {[#] aiming for Bxe7.} Nb6 (16... Rc8 $11 {keeps the balance.} 17. Bxe7 (17. Nxd7 Rxc6 18. Qb5 Qxd7 $11) 17... Qxe7 18. Nxd7 Rxc6) 17. Bxe7 $16 {0x0.001f251ddae0dp-1022s more active pieces. Black is on the road to losing.} Nxc4 18. Bxd8 bxc6 19. Nxc4 {Strongly threatening Bc7.} Bxe2 20. Be7 Rfe8 (20... Bxc4 $142 21. Bxf8 Kxf8) 21. Nb6 $18 Bxd1 22. Rxd1 ({Weaker is} 22. Nxa8 Bc2 $16) 22... Ra6 23. Bc5 f6 24. Nc4 {[%cal Bb6c4,Bc4d6,Bd6f5][%mdl 32]} g5 25. Re1 Kg7 26. Nd6 Rb8 27. Rxe6 Rxb2 28. Nf5+ Kg6 29. g4 h5 30. h3 {[#] White wants to mate with Re7.} hxg4 31. hxg4 {Re7 would kill now.} Rb7 32. Be7 Rab6 33. Rxf6+ {White mates.} Kh7 34. Rf7+ Kg8 35. Nh6+ Kh8 36. Bf6# {Weighted Error Value: White=0.04 (flawless) /Black=0.60} 1-0

[Event "93rd German Championship 2022"]
[Site "Magdeburg"]
[Date "2022.08.16"]
[Round "3.1"]
[White "Roseneck, Jonas"]
[Black "Bethke, Richard"]
[Result "1/2-1/2"]
[ECO "A80"]
[WhiteElo "2384"]
[BlackElo "2381"]
[Annotator "TA"]
[PlyCount "140"]
[EventDate "2022.08.14"]
[EventType "swiss"]
[EventCountry "GER"]
[SourceTitle "playchess.com"]
[Source "ChessBase"]
[SourceQuality "1"]
[TimeControl "40/5400+30:1800+30"]

{[%evp 10,140,39,31,41,52,69,39,50,38,40,31,31,22,61,35,81,75,68,75,76,54,56,62,197,186,456,447,447,418,399,180,170,-102,-96,-99,-102,-102,-7,-11,-12,-13,0,0,0,0,0,-42,0,-5,30,42,47,47,56,46,34,11,48,44,64,58,79,25,104,95,139,55,55,56,73,73,65,73,71,46,79,29,31,16,17,18,22,0,0,0,0,0,0,0,0,0,-21,-3,0,0,0,-5,-5,-7,0,0,0,0,0,0,0,0,0,0,0,0,0,0,0,0,0,0,0,0,0,0,0,0,0,0,0,0,0,-5,-5,-5,0]} 1. d4 {[%emt 0:00:02]} f5 {[%emt 0:00:17]} 2. Bg5 {[%emt 0:00:05]} h6 {[%emt 0:00:31]} 3. Bh4 {[%emt 0:00:01]} g5 {[%emt 0:00:18]} 4. e3 {[%emt 0:00:01]} Nf6 {[%emt 0:00:14]} 5. Bg3 {[%emt 0:00:01]} d6 {[%emt 0:01:06]} 6. Nc3 {[%emt 0:00:06]} Bg7 {[%emt 0:04:05] A80: Dutch Defence: Unusual White second moves.} 7. h4 {[%emt 0:01:19]} g4 $1 {[%emt 0:00:13]} 8. Bc4 $1 {[%emt 0:02:20][%mdl 4] is recently more successful than 8.h5.} Nc6 {[%emt 0:05:05] White is slightly better.} 9. Nge2 {[%emt 0:05:32]} Nh5 {[%emt 0:05:27] [#]} 10. Qd3 $146 {[%emt 0:05:47]} ({Predecessor:} 10. Nf4 Nxf4 11. Bxf4 e5 12. dxe5 dxe5 13. Bg3 Qe7 14. a3 Bd7 15. h5 Qc5 16. Qd5 Qxd5 17. Nxd5 {½-½ (25) Leiva Rodriguez,J (2283)-Neiksans,A (2537) Istanbul 2012}) 10... e6 {[%emt 0:09:01] Prevents Nd5.} 11. O-O-O {[%emt 0:05:35]} Qe7 {[%emt 0:03:20]} (11... Na5 {keeps more tension.} 12. f3 O-O 13. fxg4 fxg4 14. Rhf1 a6) 12. e4 {[%emt 0:21:07] White is more active.} f4 {[%emt 0:22:56]} (12... O-O $14) 13. Nxf4 $16 {[%emt 0:07:50]} Nxf4 {[%emt 0:00:08]} 14. Bxf4 {[%emt 0:00:01][%cal Oe4e5]} Nxd4 {[%emt 0:10:00]} 15. e5 {[%emt 0:08:04]} (15. Rhe1 $5 {[%cal Re4e5]}) 15... dxe5 {[%emt 0:01:43]} 16. Be3 {[%emt 0:02:45]} Nf5 {[%emt 0:06:15]} (16... Bd7 $1 $14) 17. Ne4 $18 {[%emt 0:01:39]} Nxe3 $2 {[%emt 0:09:46]} (17... b6 {is a better defense.}) 18. Bb5+ $1 {[%emt 0:00:29]} (18. Qxe3 O-O $14) 18... c6 {[%emt 0:09:19]} 19. Nd6+ {[%emt 0:00:04]} Kd8 {[%emt 0:08:46]} 20. fxe3 {[%emt 0:12:26]} (20. Qxe3 Kc7 21. Be2 Rd8 $14) (20. Nf5+ $142 Qd7 21. Qxe3 exf5 22. Rxd7+ Bxd7 23. Rd1 $1) 20... Kc7 {[%emt 0:00:21] [#]} (20... cxb5 $2 21. Nf5+ Qd7 22. Qxb5 $1 $18) 21. Qa3 $2 {[%emt 0:03:02]} Rd8 $36 {[%emt 0:01:16][%cal Rd8d6][%mdl 2048] Black is on the roll.} 22. Qa5+ {[%emt 0:07:07]} b6 $1 {[%emt 0:00:01]} 23. Nxc8 {[%emt 0:00:02]} Qc5 {[%emt 0:01:21]} ({Much less strong is} 23... Kxc8 24. Qc3 Qc5 25. Rxd8+ (25. Bxc6 Qxc3 26. bxc3 Rb8 $11) 25... Kxd8 26. Qd3+ (26. Bxc6 Qxc3 27. bxc3 Rc8 $11) 26... Kc7 27. Rd1 $1 $16) (23... Rxd1+ $17 24. Rxd1 bxa5 25. Nxe7 cxb5) 24. Qa6 $11 {[%emt 0:03:38]} Qxb5 {[%emt 0:00:29]} (24... cxb5 $2 25. Rxd8 Kxd8 26. Rd1+ Kc7 27. Nd6 Qxd6 28. Rxd6 Kxd6 29. Qb7 $18) 25. Qxb5 {[%emt 0:00:25] The board is on fire.} Rxd1+ {[%emt 0:00:30]} 26. Rxd1 {[%emt 0:00:04][%cal Ob5a6] Threatening mate with Qa6!} cxb5 {[%emt 0:00:04][%mdl 4096] Endgame KRB-KRN} 27. Nd6 {[%emt 0:00:13]} a6 {[%emt 0:00:52]} 28. Ne4 {[%emt 0:00:36] Inhibits Bf6.} Rf8 {[%emt 0:00:34]} 29. Rd6 {[%emt 0:02:35]} Rf1+ {[%emt 0:00:28]} 30. Kd2 {[%emt 0:02:48]} Rg1 {[%emt 0:00:04]} 31. Rxe6 {[%emt 0:00:12]} Rxg2+ {[%emt 0:00:04]} 32. Kd3 {[%emt 0:00:01]} Bf8 {[%emt 0:00:28] Against Re7+} 33. Re8 {[%emt 0:02:05]} Bd6 {[%emt 0:01:26]} (33... Bc5 $5 {[%cal Rg2h2]}) 34. Rh8 {[%emt 0:00:21] And now Rh7+ would win.} Be7 {[%emt 0:00:30]} 35. Rh7 {[%emt 0:00:29]} Kd8 {[%emt 0:00:22]} 36. Rxh6 {[%emt 0:00:04]} Rg1 {[%emt 0:00:30] [#]} (36... g3 $11) 37. h5 $1 $16 {[%emt 0:01:34]} g3 {[%emt 0:00:35] [#]} 38. Rg6 {[%emt 0:00:52]} ({But not} 38. Rxb6 $2 Rd1+ 39. Nd2 (39. Ke2 $2 g2 $19) 39... g2 $19) (38. Ke2 $1 $16) 38... g2 $14 {[%emt 0:00:04]} 39. Ke2 {[%emt 0:00:12] Prevents Rd1.} Rh1 {[%emt 0:00:57]} 40. Rxg2 {[%emt 0:03:37]} Rxh5 {[%emt 0:00:05]} 41. Rg6 {[%emt 0:30:09] Inhibits Rh6.} Kc7 {[%emt 0:30:44]} 42. Re6 {[%emt 0:00:45]} Bd8 {[%emt 0:00:00]} 43. Kd3 {[%emt 0:00:00]} ({White should play} 43. a3 $16) 43... b4 $11 {[%emt 0:00:00]} 44. Nd2 {[%emt 0:00:00]} Kd7 {[%emt 0:00:00] The position is equal.} 45. Rg6 {[%emt 0:00:00]} a5 {[%emt 0:00:00]} 46. Ke4 {[%emt 0:00:00]} Rh2 {[%emt 0:00:00]} 47. Nc4 {[%emt 0:00:00]} Rxc2 {[%emt 0:00:00]} 48. Kd5 {[%emt 0:00:00]} Bc7 {[%emt 0:00:00] ...b5 is the strong threat.} 49. Rg7+ {[%emt 0:00:00]} Kc8 {[%emt 0:00:00]} 50. Rg8+ {[%emt 0:00:22]} Kb7 {[%emt 0:00:00]} 51. Rg7 {[%emt 0:00:07]} Kc8 {[%emt 0:00:00]} 52. Rg8+ {[%emt 0:00:04]} Kb7 {[%emt 0:00:00]} 53. Rg7 {[%emt 0:00:10]} a4 {[%emt 0:01:10] Strongly threatening ...b5.} 54. Nd6+ {[%emt 0:03:47]} Ka6 {[%emt 0:00:13]} 55. Nc4 {[%emt 0:00:28] Against Rd2+} b5 {[%emt 0:02:59]} 56. Rxc7 {[%emt 0:01:36] Threatens to win with Rc6+.} bxc4 {[%emt 0:00:03] KR-KR} 57. Rc6+ {[%emt 0:00:29]} Kb5 {[%emt 0:00:13]} 58. Rc5+ {[%emt 0:00:02]} Kb6 {[%emt 0:00:04] Hoping for ...Rd2+.} 59. Rc6+ {[%emt 0:00:04]} Kb5 {[%emt 0:00:17] ( -> ...Rd2+)} 60. Rc5+ {[%emt 0:00:01]} Kb6 {[%emt 0:00:05] White must now prevent ...Rd2+.} 61. Rc6+ {[%emt 0:00:02]} Kb7 {[%emt 0:00:28]} (61... Kb5 $5 62. Rc5+ $11) 62. Rxc4 {[%emt 0:00:01]} Rxb2 {[%emt 0:00:19]} 63. Kc5 {[%emt 0:00:41]} b3 {[%emt 0:01:29]} 64. axb3 {[%emt 0:00:01]} a3 {[%emt 0:00:51]} 65. Rb4+ {[%emt 0:01:11]} Kc7 {[%emt 0:00:04]} 66. Ra4 {[%emt 0:03:57]} Rxb3 {[%emt 0:00:07]} 67. e4 {[%emt 0:00:02]} Rd3 {[%emt 0:02:59]} 68. Ra7+ $1 {[%emt 0:00:02]} Kb8 {[%emt 0:00:20]} 69. Ra5 {[%emt 0:00:27]} Kb7 {[%emt 0:01:22]} 70. Ra4 $1 {[%emt 0:00:03]} Kc7 {[%emt 0:00:28] Weighted Error Value: White=0.20 (precise) /Black=0.18 (very precise)} 1/2-1/2